[Event "Titled Tuesday Blitz November 29 Early 2022"]
[White "Kleiman, Jake"]
[Black "Zatonskih, Anna"]
[WhiteFideId "2020041"]
[BlackFideId "14101572"]
[WhiteElo "2626"]
[BlackElo "2362"]
[Result "1-0"]
[Round "06"]
[TimeControl "180+1"]
[Date "2022.11.30"]
[WhiteClock "0:00:13"]
[BlackClock "0:00:01"]

1. e4 {[%clk 0:02:55]}  d5 {[%clk 0:02:59]} 2. exd5 {[%clk 0:02:55]}  Qxd5 {[%clk 0:02:59]} 3. Nc3 {[%clk 0:02:55]}  Qd6 {[%clk 0:03:00]} 4. d4 {[%clk 0:02:55]}  c6 {[%clk 0:03:00]} 5. Nf3 {[%clk 0:02:53]}  Bg4 {[%clk 0:02:59]} 6. Be2 {[%clk 0:02:53]}  Nf6 {[%clk 0:02:59]} 7. Be3 {[%clk 0:02:53]}  e6 {[%clk 0:02:59]} 8. h3 {[%clk 0:02:54]}  Bh5 {[%clk 0:02:59]} 9. O-O {[%clk 0:02:54]}  Nbd7 {[%clk 0:02:57]} 10. Nd2 {[%clk 0:02:54]}  Bxe2 {[%clk 0:02:56]} 11. Qxe2 {[%clk 0:02:55]}  Qc7 {[%clk 0:02:53]} 12. Nce4 {[%clk 0:02:52]}  Be7 {[%clk 0:02:51]} 13. c4 {[%clk 0:02:52]}  Nxe4 {[%clk 0:02:49]} 14. Nxe4 {[%clk 0:02:51]}  O-O {[%clk 0:02:48]} 15. Rac1 {[%clk 0:02:50]}  Nf6 {[%clk 0:02:44]} 16. Qf3 {[%clk 0:02:36]}  Nxe4 {[%clk 0:02:40]} 17. Qxe4 {[%clk 0:02:36]}  Qd7 {[%clk 0:02:21]} 18. Rfd1 {[%clk 0:02:35]}  Rfd8 {[%clk 0:02:19]} 19. Rc2 {[%clk 0:02:29]}  Bf6 {[%clk 0:02:17]} 20. Rcd2 {[%clk 0:02:26]}  Rac8 {[%clk 0:02:02]} 21. b3 {[%clk 0:02:22]}  b5 {[%clk 0:01:52]} 22. d5 {[%clk 0:02:12]}  cxd5 {[%clk 0:01:36]} 23. cxd5 {[%clk 0:02:13]}  Qb7 {[%clk 0:01:19]} 24. Qf3 {[%clk 0:02:02]}  exd5 {[%clk 0:00:48]} 25. Rxd5 {[%clk 0:02:03]}  Rxd5 {[%clk 0:00:48]} 26. Rxd5 {[%clk 0:02:02]}  Qb8 {[%clk 0:00:19]} 27. Rd7 {[%clk 0:01:56]}  Re8 {[%clk 0:00:14]} 28. Qd5 {[%clk 0:01:47]}  a6 {[%clk 0:00:14]} 29. Qxf7+ {[%clk 0:01:46]}  Kh8 {[%clk 0:00:15]} 30. Qd5 {[%clk 0:01:00]}  Qc8 {[%clk 0:00:14]} 31. g3 {[%clk 0:00:55]}  Qc2 {[%clk 0:00:13]} 32. Qd2 {[%clk 0:00:40]}  Qb1+ {[%clk 0:00:11]} 33. Kh2 {[%clk 0:00:38]}  Qe4 {[%clk 0:00:08]} 34. Qd3 {[%clk 0:00:31]}  Qf3 {[%clk 0:00:06]} 35. Bb6 {[%clk 0:00:23]}  Qc6 {[%clk 0:00:04]} 36. Rd6 {[%clk 0:00:19]}  Qb7 {[%clk 0:00:04]} 37. Qd5 {[%clk 0:00:18]}  Qe7 {[%clk 0:00:03]} 38. Rd7 {[%clk 0:00:16]}  Qe2 {[%clk 0:00:01]} 39. Bd4 {[%clk 0:00:13]} 1-0


[Site "https://www.chess.com"]

[Event "Titled Tuesday Blitz November 29 Early 2022"]
[White "Korchmar, Vasiliy"]
[Black "Fecker, Noah"]
[WhiteFideId "24131750"]
[BlackFideId "1334263"]
[WhiteElo "2370"]
[BlackElo "2291"]
[Result "0-1"]
[Round "06"]
[TimeControl "180+1"]
[Date "2022.11.30"]
[WhiteClock "0:00:01"]
[BlackClock "0:00:25"]

1. e4 {[%clk 0:03:00]}  c5 {[%clk 0:02:58]} 2. Nf3 {[%clk 0:03:00]}  Nc6 {[%clk 0:02:57]} 3. d4 {[%clk 0:03:00]}  cxd4 {[%clk 0:02:58]} 4. Nxd4 {[%clk 0:03:00]}  Nf6 {[%clk 0:02:59]} 5. Nc3 {[%clk 0:03:01]}  h5 {[%clk 0:02:57]} 6. Bg5 {[%clk 0:02:50]}  Qa5 {[%clk 0:02:56]} 7. Bxf6 {[%clk 0:02:48]}  gxf6 {[%clk 0:02:57]} 8. Nb3 {[%clk 0:02:14]}  Qe5 {[%clk 0:02:55]} 9. Bd3 {[%clk 0:02:06]}  h4 {[%clk 0:02:48]} 10. O-O {[%clk 0:02:04]}  h3 {[%clk 0:02:45]} 11. g3 {[%clk 0:02:04]}  d6 {[%clk 0:02:22]} 12. Nd5 {[%clk 0:01:59]}  Kd8 {[%clk 0:02:14]} 13. f4 {[%clk 0:01:53]}  Qh5 {[%clk 0:02:13]} 14. Qd2 {[%clk 0:01:49]}  Be6 {[%clk 0:02:03]} 15. c4 {[%clk 0:01:36]}  Bh6 {[%clk 0:01:45]} 16. Na5 {[%clk 0:01:24]}  Nxa5 {[%clk 0:01:33]} 17. Qxa5+ {[%clk 0:01:25]}  b6 {[%clk 0:01:33]} 18. Qa6 {[%clk 0:01:19]}  Bc8 {[%clk 0:01:28]} 19. Qa3 {[%clk 0:01:12]}  Bb7 {[%clk 0:01:21]} 20. Rad1 {[%clk 0:00:43]}  Qg4 {[%clk 0:00:59]} 21. Ne3 {[%clk 0:00:35]}  Qe6 {[%clk 0:00:54]} 22. Nf5 {[%clk 0:00:16]}  Bxe4 {[%clk 0:00:48]} 23. Rfe1 {[%clk 0:00:16]}  Qxf5 {[%clk 0:00:32]} 24. Bxe4 {[%clk 0:00:16]}  Qc8 {[%clk 0:00:33]} 25. Bxa8 {[%clk 0:00:02]}  Qxa8 {[%clk 0:00:34]} 26. Rd2 {[%clk 0:00:02]}  Rg8 {[%clk 0:00:29]} 27. Rxe7 {[%clk 0:00:02]}  Bxf4 {[%clk 0:00:28]} 28. Rxd6+ {[%clk 0:00:01]}  Kc8 {[%clk 0:00:25]} 0-1


[Site "https://www.chess.com"]

[Event "Titled Tuesday Blitz November 29 Early 2022"]
[White "Korkmaz, Necmettin"]
[Black "Sanchez, Robert"]
[WhiteFideId "6303285"]
[BlackFideId "2034360"]
[WhiteElo "2094"]
[BlackElo "2333"]
[Result "1-0"]
[Round "06"]
[TimeControl "180+1"]
[Date "2022.11.30"]
[WhiteClock "0:02:20"]
[BlackClock "0:01:48"]

1. e4 {[%clk 0:02:56]}  e6 {[%clk 0:03:00]} 2. d4 {[%clk 0:02:55]}  d5 {[%clk 0:03:00]} 3. e5 {[%clk 0:02:55]}  c5 {[%clk 0:03:00]} 4. c3 {[%clk 0:02:55]}  Nc6 {[%clk 0:03:00]} 5. Nf3 {[%clk 0:02:55]}  Bd7 {[%clk 0:03:01]} 6. Bd3 {[%clk 0:02:54]}  Qb6 {[%clk 0:02:57]} 7. O-O {[%clk 0:02:53]}  cxd4 {[%clk 0:02:57]} 8. cxd4 {[%clk 0:02:53]}  Nxd4 {[%clk 0:02:57]} 9. Nxd4 {[%clk 0:02:54]}  Qxd4 {[%clk 0:02:58]} 10. Nc3 {[%clk 0:02:54]}  a6 {[%clk 0:02:58]} 11. Qe2 {[%clk 0:02:54]}  Ne7 {[%clk 0:02:53]} 12. Kh1 {[%clk 0:02:53]}  Nc6 {[%clk 0:02:54]} 13. f4 {[%clk 0:02:54]}  Qa7 {[%clk 0:02:50]} 14. Be3 {[%clk 0:02:51]}  Bc5 {[%clk 0:02:46]} 15. Bxc5 {[%clk 0:02:51]}  Qxc5 {[%clk 0:02:42]} 16. Rac1 {[%clk 0:02:51]}  Qe7 {[%clk 0:02:40]} 17. f5 {[%clk 0:02:50]}  O-O-O {[%clk 0:02:33]} 18. Bxa6 {[%clk 0:02:43]}  Qb4 {[%clk 0:02:25]} 19. Nb5 {[%clk 0:02:37]}  bxa6 {[%clk 0:02:18]} 20. Nd6+ {[%clk 0:02:36]}  Kb8 {[%clk 0:02:15]} 21. Qxa6 {[%clk 0:02:36]}  Na7 {[%clk 0:02:02]} 22. a3 {[%clk 0:02:29]}  Qb3 {[%clk 0:01:52]} 23. Rf3 {[%clk 0:02:21]}  Rc8 {[%clk 0:01:48]} 24. Rxb3+ {[%clk 0:02:20]} 1-0


[Site "https://www.chess.com"]

[Event "Titled Tuesday Blitz November 29 Early 2022"]
[White "Kuchava, Ana"]
[Black "Stijve, Theo"]
[WhiteFideId "13605348"]
[BlackFideId "1331132"]
[WhiteElo "2001"]
[BlackElo "2256"]
[Result "0-1"]
[Round "06"]
[TimeControl "180+1"]
[Date "2022.11.30"]
[WhiteClock "0:01:16"]
[BlackClock "0:01:05"]

1. d4 {[%clk 0:03:00]}  Nf6 {[%clk 0:02:57]} 2. Nf3 {[%clk 0:02:59]}  d5 {[%clk 0:02:56]} 3. c4 {[%clk 0:02:58]}  e6 {[%clk 0:02:54]} 4. Nc3 {[%clk 0:02:57]}  Be7 {[%clk 0:02:54]} 5. Bf4 {[%clk 0:02:54]}  O-O {[%clk 0:02:53]} 6. e3 {[%clk 0:02:54]}  Nbd7 {[%clk 0:02:50]} 7. Bd3 {[%clk 0:02:50]}  dxc4 {[%clk 0:02:50]} 8. Bxc4 {[%clk 0:02:51]}  a6 {[%clk 0:02:50]} 9. a4 {[%clk 0:02:50]}  Nb6 {[%clk 0:02:49]} 10. O-O {[%clk 0:02:51]}  Nxc4 {[%clk 0:02:50]} 11. Qb3 {[%clk 0:02:43]}  Nb6 {[%clk 0:02:43]} 12. Bg3 {[%clk 0:02:39]}  Nbd5 {[%clk 0:02:39]} 13. Rac1 {[%clk 0:02:36]}  c6 {[%clk 0:02:25]} 14. Rfe1 {[%clk 0:02:31]}  Nxc3 {[%clk 0:02:23]} 15. bxc3 {[%clk 0:02:29]}  Ne4 {[%clk 0:02:23]} 16. Ne5 {[%clk 0:02:24]}  Bd6 {[%clk 0:02:19]} 17. Nc4 {[%clk 0:02:18]}  Bxg3 {[%clk 0:02:09]} 18. hxg3 {[%clk 0:02:19]}  b5 {[%clk 0:02:08]} 19. axb5 {[%clk 0:02:16]}  cxb5 {[%clk 0:02:06]} 20. Ne5 {[%clk 0:02:17]}  Bb7 {[%clk 0:02:03]} 21. c4 {[%clk 0:02:17]}  f6 {[%clk 0:01:55]} 22. Nd3 {[%clk 0:02:11]}  bxc4 {[%clk 0:01:55]} 23. Qxc4 {[%clk 0:02:12]}  Bd5 {[%clk 0:01:55]} 24. Qa4 {[%clk 0:02:09]}  Qe8 {[%clk 0:01:47]} 25. Qa5 {[%clk 0:02:06]}  Qb5 {[%clk 0:01:46]} 26. Qa3 {[%clk 0:02:00]}  Rfc8 {[%clk 0:01:44]} 27. Nf4 {[%clk 0:01:58]}  a5 {[%clk 0:01:38]} 28. f3 {[%clk 0:01:51]}  Nxg3 {[%clk 0:01:36]} 29. e4 {[%clk 0:01:49]}  Bc4 {[%clk 0:01:33]} 30. Kf2 {[%clk 0:01:43]}  Qg5 {[%clk 0:01:22]} 31. Nh3 {[%clk 0:01:33]}  Qh4 {[%clk 0:01:18]} 32. Kg1 {[%clk 0:01:26]}  Ne2+ {[%clk 0:01:15]} 33. Kh2 {[%clk 0:01:25]}  Qg3+ {[%clk 0:01:12]} 34. Kh1 {[%clk 0:01:22]}  Nxc1 {[%clk 0:01:09]} 35. Rxc1 {[%clk 0:01:22]}  a4 {[%clk 0:01:10]} 36. Qb4 {[%clk 0:01:18]}  a3 {[%clk 0:01:06]} 37. Rxc4 {[%clk 0:01:15]}  Rxc4 {[%clk 0:01:05]} 38. Qxc4 {[%clk 0:01:15]}  a2 {[%clk 0:01:05]} 39. Qxe6+ {[%clk 0:01:16]}  Kh8 {[%clk 0:01:05]} 0-1


[Site "https://www.chess.com"]

[Event "Titled Tuesday Blitz November 29 Early 2022"]
[White "Kukula, Pawel"]
[Black "Tsatsalashvili, Keti"]
[WhiteFideId "1115081"]
[BlackFideId "13603434"]
[WhiteElo "2046"]
[BlackElo "2220"]
[Result "0-1"]
[Round "06"]
[TimeControl "180+1"]
[Date "2022.11.30"]
[WhiteClock "0:00:01"]
[BlackClock "0:00:17"]

1. e4 {[%clk 0:02:57]}  c5 {[%clk 0:02:59]} 2. Nf3 {[%clk 0:02:57]}  d6 {[%clk 0:02:59]} 3. d4 {[%clk 0:02:57]}  cxd4 {[%clk 0:03:00]} 4. Nxd4 {[%clk 0:02:58]}  Nf6 {[%clk 0:03:00]} 5. Nc3 {[%clk 0:02:59]}  Nc6 {[%clk 0:03:01]} 6. Bg5 {[%clk 0:02:58]}  a6 {[%clk 0:03:00]} 7. Qd2 {[%clk 0:02:52]}  e6 {[%clk 0:03:00]} 8. f4 {[%clk 0:02:50]}  Qb6 {[%clk 0:02:55]} 9. Nb3 {[%clk 0:02:43]}  Ng4 {[%clk 0:02:29]} 10. h3 {[%clk 0:02:12]}  Qe3+ {[%clk 0:02:23]} 11. Qxe3 {[%clk 0:01:46]}  Nxe3 {[%clk 0:02:24]} 12. Kd2 {[%clk 0:01:40]}  Nxf1+ {[%clk 0:02:16]} 13. Rhxf1 {[%clk 0:01:41]}  Be7 {[%clk 0:01:59]} 14. Bxe7 {[%clk 0:01:35]}  Kxe7 {[%clk 0:02:00]} 15. Rae1 {[%clk 0:01:32]}  b5 {[%clk 0:01:58]} 16. Ne2 {[%clk 0:01:30]}  Bb7 {[%clk 0:01:56]} 17. Ned4 {[%clk 0:01:29]}  Rac8 {[%clk 0:01:42]} 18. Nxc6+ {[%clk 0:01:23]}  Bxc6 {[%clk 0:01:43]} 19. c3 {[%clk 0:01:21]}  Rhd8 {[%clk 0:01:43]} 20. Ke3 {[%clk 0:00:58]}  e5 {[%clk 0:01:41]} 21. Rd1 {[%clk 0:00:50]}  exf4+ {[%clk 0:01:22]} 22. Kxf4 {[%clk 0:00:46]}  d5 {[%clk 0:01:18]} 23. e5 {[%clk 0:00:42]}  b4 {[%clk 0:01:09]} 24. Rc1 {[%clk 0:00:20]}  Bb5 {[%clk 0:01:04]} 25. Rf2 {[%clk 0:00:17]}  bxc3 {[%clk 0:01:01]} 26. bxc3 {[%clk 0:00:18]}  Rc4+ {[%clk 0:00:59]} 27. Nd4 {[%clk 0:00:17]}  Rdc8 {[%clk 0:00:59]} 28. Rb2 {[%clk 0:00:06]}  f6 {[%clk 0:00:26]} 29. exf6+ {[%clk 0:00:05]}  Kxf6 {[%clk 0:00:27]} 30. Ke3 {[%clk 0:00:06]}  Rxc3+ {[%clk 0:00:27]} 31. Rxc3 {[%clk 0:00:04]}  Rxc3+ {[%clk 0:00:27]} 32. Kf2 {[%clk 0:00:05]}  Ra3 {[%clk 0:00:25]} 33. Ke1 {[%clk 0:00:02]}  Bc4 {[%clk 0:00:22]} 34. Nf3 {[%clk 0:00:01]}  Rxa2 {[%clk 0:00:21]} 35. Rb6+ {[%clk 0:00:02]}  Kf5 {[%clk 0:00:20]} 36. g4+ {[%clk 0:00:01]}  Kf4 {[%clk 0:00:19]} 37. Nd2 {[%clk 0:00:01]}  Kg3 {[%clk 0:00:17]} 0-1


[Site "https://www.chess.com"]

[Event "Titled Tuesday Blitz November 29 Early 2022"]
[White "Le, Tuan Minh"]
[Black "Jobava, Baadur"]
[WhiteFideId "12401153"]
[BlackFideId "13601520"]
[WhiteElo "3020"]
[BlackElo "3046"]
[Result "0-1"]
[Round "06"]
[TimeControl "180+1"]
[Date "2022.11.30"]
[WhiteClock "0:00:04"]
[BlackClock "0:00:20"]

1. d4 {[%clk 0:03:00]}  Nf6 {[%clk 0:02:53]} 2. Nf3 {[%clk 0:03:01]}  c5 {[%clk 0:02:53]} 3. c3 {[%clk 0:03:01]}  b6 {[%clk 0:02:48]} 4. Bf4 {[%clk 0:03:01]}  Bb7 {[%clk 0:02:49]} 5. e3 {[%clk 0:03:01]}  g6 {[%clk 0:02:46]} 6. h3 {[%clk 0:03:00]}  Bg7 {[%clk 0:02:47]} 7. Bd3 {[%clk 0:02:59]}  O-O {[%clk 0:02:47]} 8. O-O {[%clk 0:02:58]}  d6 {[%clk 0:02:47]} 9. Bh2 {[%clk 0:02:58]}  Nc6 {[%clk 0:02:45]} 10. Qe2 {[%clk 0:02:57]}  Nd7 {[%clk 0:02:34]} 11. Nbd2 {[%clk 0:02:43]}  Re8 {[%clk 0:02:17]} 12. Rfd1 {[%clk 0:02:40]}  Rc8 {[%clk 0:01:56]} 13. a4 {[%clk 0:02:39]}  Rc7 {[%clk 0:01:54]} 14. Bb5 {[%clk 0:02:26]}  Qa8 {[%clk 0:01:47]} 15. h4 {[%clk 0:01:43]}  h6 {[%clk 0:01:45]} 16. Bg3 {[%clk 0:01:35]}  a6 {[%clk 0:01:41]} 17. Bc4 {[%clk 0:01:32]}  Rcc8 {[%clk 0:01:37]} 18. Ba2 {[%clk 0:01:30]}  Na5 {[%clk 0:01:17]} 19. b4 {[%clk 0:01:26]}  cxb4 {[%clk 0:01:17]} 20. cxb4 {[%clk 0:01:27]}  Nc6 {[%clk 0:01:18]} 21. b5 {[%clk 0:01:27]}  Nb4 {[%clk 0:01:15]} 22. Bb3 {[%clk 0:01:27]}  a5 {[%clk 0:01:12]} 23. Bc4 {[%clk 0:00:58]}  Nf6 {[%clk 0:01:07]} 24. Rac1 {[%clk 0:00:54]}  Ne4 {[%clk 0:01:03]} 25. Nxe4 {[%clk 0:00:53]}  Bxe4 {[%clk 0:01:04]} 26. Ne1 {[%clk 0:00:47]}  d5 {[%clk 0:00:48]} 27. Bb3 {[%clk 0:00:43]}  e6 {[%clk 0:00:49]} 28. Bd6 {[%clk 0:00:40]}  h5 {[%clk 0:00:44]} 29. Qd2 {[%clk 0:00:37]}  Bf8 {[%clk 0:00:39]} 30. Bxf8 {[%clk 0:00:29]}  Rxf8 {[%clk 0:00:40]} 31. f3 {[%clk 0:00:22]}  Bf5 {[%clk 0:00:40]} 32. Qf2 {[%clk 0:00:23]}  Rxc1 {[%clk 0:00:38]} 33. Rxc1 {[%clk 0:00:24]}  Rc8 {[%clk 0:00:38]} 34. Qd2 {[%clk 0:00:24]}  Kg7 {[%clk 0:00:36]} 35. Rc3 {[%clk 0:00:19]}  Qb8 {[%clk 0:00:35]} 36. Qc1 {[%clk 0:00:18]}  Rxc3 {[%clk 0:00:35]} 37. Qxc3 {[%clk 0:00:19]}  Qg3 {[%clk 0:00:36]} 38. Kf1 {[%clk 0:00:19]}  Qxh4 {[%clk 0:00:35]} 39. e4 {[%clk 0:00:19]}  dxe4 {[%clk 0:00:34]} 40. d5+ {[%clk 0:00:20]}  Qf6 {[%clk 0:00:34]} 41. Qxf6+ {[%clk 0:00:08]}  Kxf6 {[%clk 0:00:35]} 42. d6 {[%clk 0:00:09]}  exf3 {[%clk 0:00:34]} 43. Nxf3 {[%clk 0:00:09]}  e5 {[%clk 0:00:35]} 44. Nd2 {[%clk 0:00:07]}  Nd3 {[%clk 0:00:24]} 45. Bd5 {[%clk 0:00:04]}  Nc5 {[%clk 0:00:23]} 46. Bc6 {[%clk 0:00:04]}  Nxa4 {[%clk 0:00:22]} 47. Kf2 {[%clk 0:00:04]}  Nc5 {[%clk 0:00:22]} 48. Nc4 {[%clk 0:00:04]}  Nd7 {[%clk 0:00:22]} 49. Ke3 {[%clk 0:00:02]}  h4 {[%clk 0:00:21]} 50. Bxd7 {[%clk 0:00:02]}  Bxd7 {[%clk 0:00:21]} 51. Nxb6 {[%clk 0:00:03]}  Bxb5 {[%clk 0:00:20]} 52. Nd5+ {[%clk 0:00:04]}  Kf5 {[%clk 0:00:20]} 53. Nc3 {[%clk 0:00:01]}  Bc6 {[%clk 0:00:20]} 54. Ne4 {[%clk 0:00:02]}  Ke6 {[%clk 0:00:20]} 55. Ng5+ {[%clk 0:00:03]}  Kxd6 {[%clk 0:00:19]} 56. Nxf7+ {[%clk 0:00:03]}  Ke6 {[%clk 0:00:20]} 57. Ng5+ {[%clk 0:00:04]}  Kf5 {[%clk 0:00:20]} 0-1


[Site "https://www.chess.com"]

[Event "Titled Tuesday Blitz November 29 Early 2022"]
[White "Lucas, Arthur"]
[Black "Zaichenko, Daria"]
[WhiteFideId "26093073"]
[BlackFideId "4197453"]
[WhiteElo "2251"]
[BlackElo "2039"]
[Result "0-1"]
[Round "06"]
[TimeControl "180+1"]
[Date "2022.11.30"]
[WhiteClock "0:00:02"]
[BlackClock "0:00:14"]

1. d4 {[%clk 0:03:00]}  d5 {[%clk 0:02:58]} 2. c4 {[%clk 0:03:00]}  e6 {[%clk 0:02:58]} 3. Nc3 {[%clk 0:03:00]}  Be7 {[%clk 0:02:58]} 4. Nf3 {[%clk 0:02:59]}  Nf6 {[%clk 0:02:58]} 5. Bf4 {[%clk 0:02:57]}  c6 {[%clk 0:02:58]} 6. e3 {[%clk 0:02:56]}  Ne4 {[%clk 0:02:57]} 7. Qc2 {[%clk 0:02:50]}  f5 {[%clk 0:02:57]} 8. Nd2 {[%clk 0:02:46]}  O-O {[%clk 0:02:56]} 9. f3 {[%clk 0:02:40]}  Bh4+ {[%clk 0:02:49]} 10. g3 {[%clk 0:02:37]}  Nxd2 {[%clk 0:02:49]} 11. Kxd2 {[%clk 0:02:29]}  Be7 {[%clk 0:02:46]} 12. Re1 {[%clk 0:02:27]}  Nd7 {[%clk 0:02:46]} 13. h4 {[%clk 0:02:25]}  Kh8 {[%clk 0:02:39]} 14. Kc1 {[%clk 0:02:24]}  dxc4 {[%clk 0:02:37]} 15. Bxc4 {[%clk 0:02:24]}  Nb6 {[%clk 0:02:37]} 16. Bb3 {[%clk 0:02:15]}  Nd5 {[%clk 0:02:37]} 17. Be5 {[%clk 0:02:13]}  a5 {[%clk 0:02:28]} 18. e4 {[%clk 0:02:03]}  Nb4 {[%clk 0:02:20]} 19. Qd2 {[%clk 0:01:55]}  b5 {[%clk 0:02:19]} 20. a3 {[%clk 0:01:53]}  a4 {[%clk 0:02:20]} 21. Bd1 {[%clk 0:01:48]}  Na6 {[%clk 0:02:15]} 22. Bc2 {[%clk 0:01:42]}  b4 {[%clk 0:01:50]} 23. axb4 {[%clk 0:01:37]}  Nxb4 {[%clk 0:01:50]} 24. Bxa4 {[%clk 0:01:24]}  Ba6 {[%clk 0:01:49]} 25. h5 {[%clk 0:01:17]}  Bf6 {[%clk 0:01:41]} 26. Bxf6 {[%clk 0:01:09]}  Qxf6 {[%clk 0:01:41]} 27. h6 {[%clk 0:01:04]}  Nd3+ {[%clk 0:01:35]} 28. Kb1 {[%clk 0:01:04]}  Rab8 {[%clk 0:01:27]} 29. hxg7+ {[%clk 0:01:02]}  Qxg7 {[%clk 0:01:27]} 30. b3 {[%clk 0:00:54]}  Qxd4 {[%clk 0:01:13]} 31. Qg5 {[%clk 0:00:22]}  Nxe1 {[%clk 0:00:53]} 32. Rxh7+ {[%clk 0:00:17]}  Kxh7 {[%clk 0:00:52]} 33. Qh5+ {[%clk 0:00:18]}  Kg7 {[%clk 0:00:42]} 34. Qg5+ {[%clk 0:00:17]}  Kf7 {[%clk 0:00:43]} 35. Qh5+ {[%clk 0:00:14]}  Ke7 {[%clk 0:00:41]} 36. Qg5+ {[%clk 0:00:13]}  Qf6 {[%clk 0:00:40]} 37. Qd2 {[%clk 0:00:12]}  Nd3 {[%clk 0:00:32]} 38. Ka2 {[%clk 0:00:06]}  Bc4 {[%clk 0:00:22]} 39. e5 {[%clk 0:00:01]}  Qxe5 {[%clk 0:00:20]} 40. Qg5+ {[%clk 0:00:01]}  Qf6 {[%clk 0:00:20]} 41. Qe3 {[%clk 0:00:01]}  Qxc3 {[%clk 0:00:16]} 42. Qa7+ {[%clk 0:00:01]}  Kf6 {[%clk 0:00:16]} 43. Qf2 {[%clk 0:00:01]}  Bxb3+ {[%clk 0:00:14]} 44. Bxb3 {[%clk 0:00:01]}  Qxb3+ {[%clk 0:00:14]} 45. Ka1 {[%clk 0:00:02]}  Qb1# {[%clk 0:00:14]} 0-1


[Site "https://www.chess.com"]

[Event "Titled Tuesday Blitz November 29 Early 2022"]
[White "Megalios, Konstantinos"]
[Black "Postny, Evgeny"]
[WhiteFideId "4238044"]
[BlackFideId "2804344"]
[WhiteElo "2277"]
[BlackElo "2476"]
[Result "0-1"]
[Round "06"]
[TimeControl "180+1"]
[Date "2022.11.30"]
[WhiteClock "0:00:08"]
[BlackClock "0:00:07"]

1. Nf3 {[%clk 0:03:00]}  d6 {[%clk 0:02:58]} 2. d4 {[%clk 0:02:59]}  g6 {[%clk 0:02:57]} 3. e4 {[%clk 0:02:57]}  Bg7 {[%clk 0:02:58]} 4. c3 {[%clk 0:02:56]}  Nf6 {[%clk 0:02:56]} 5. Bd3 {[%clk 0:02:57]}  O-O {[%clk 0:02:56]} 6. O-O {[%clk 0:02:57]}  Nc6 {[%clk 0:02:56]} 7. Re1 {[%clk 0:02:52]}  e5 {[%clk 0:02:56]} 8. h3 {[%clk 0:02:52]}  Qe7 {[%clk 0:02:47]} 9. Bg5 {[%clk 0:02:46]}  h6 {[%clk 0:02:46]} 10. Bh4 {[%clk 0:02:45]}  Qe8 {[%clk 0:02:39]} 11. dxe5 {[%clk 0:02:35]}  dxe5 {[%clk 0:02:38]} 12. Nbd2 {[%clk 0:02:35]}  Nh5 {[%clk 0:02:37]} 13. Nc4 {[%clk 0:02:28]}  Nf4 {[%clk 0:02:34]} 14. Bf1 {[%clk 0:02:28]}  Kh7 {[%clk 0:02:22]} 15. b4 {[%clk 0:02:24]}  a6 {[%clk 0:02:19]} 16. a4 {[%clk 0:02:22]}  Nb8 {[%clk 0:01:56]} 17. Nfd2 {[%clk 0:02:08]}  Nd7 {[%clk 0:01:51]} 18. f3 {[%clk 0:02:02]}  Nf6 {[%clk 0:01:45]} 19. Bf2 {[%clk 0:02:01]}  N6h5 {[%clk 0:01:38]} 20. g4 {[%clk 0:01:48]}  Nf6 {[%clk 0:01:36]} 21. Bc5 {[%clk 0:01:28]}  Rg8 {[%clk 0:01:34]} 22. Qb1 {[%clk 0:01:19]}  b6 {[%clk 0:01:27]} 23. Bf2 {[%clk 0:01:19]}  h5 {[%clk 0:01:21]} 24. a5 {[%clk 0:01:15]}  b5 {[%clk 0:01:19]} 25. Ne3 {[%clk 0:01:15]}  Bh6 {[%clk 0:01:17]} 26. c4 {[%clk 0:01:14]}  hxg4 {[%clk 0:01:09]} 27. hxg4 {[%clk 0:01:13]}  Bg5 {[%clk 0:01:09]} 28. cxb5 {[%clk 0:01:04]}  axb5 {[%clk 0:01:10]} 29. Qb2 {[%clk 0:00:48]}  Kg7 {[%clk 0:01:09]} 30. Rac1 {[%clk 0:00:48]}  Rh8 {[%clk 0:00:51]} 31. Rxc7 {[%clk 0:00:41]}  Rh6 {[%clk 0:00:39]} 32. Rec1 {[%clk 0:00:17]}  Qh8 {[%clk 0:00:36]} 33. Bg2 {[%clk 0:00:17]}  Nxg2 {[%clk 0:00:16]} 34. Kxg2 {[%clk 0:00:18]}  Rh2+ {[%clk 0:00:16]} 35. Kf1 {[%clk 0:00:18]}  Qh3+ {[%clk 0:00:15]} 36. Ke2 {[%clk 0:00:17]}  Rxf2+ {[%clk 0:00:10]} 37. Kxf2 {[%clk 0:00:18]}  Qh2+ {[%clk 0:00:10]} 38. Ng2 {[%clk 0:00:17]}  Bh4+ {[%clk 0:00:10]} 39. Ke3 {[%clk 0:00:15]}  Qxg2 {[%clk 0:00:07]} 40. Qxe5 {[%clk 0:00:15]}  Qf2+ {[%clk 0:00:06]} 41. Kd3 {[%clk 0:00:14]}  Be6 {[%clk 0:00:06]} 42. R1c5 {[%clk 0:00:07]}  Rd8+ {[%clk 0:00:06]} 43. Rd5 {[%clk 0:00:08]}  Bxd5 {[%clk 0:00:06]} 44. exd5 {[%clk 0:00:09]}  Rxd5+ {[%clk 0:00:07]} 45. Qxd5 {[%clk 0:00:08]}  Nxd5 {[%clk 0:00:08]} 46. Rc5 {[%clk 0:00:08]}  Qe3+ {[%clk 0:00:08]} 47. Kc2 {[%clk 0:00:08]}  Nxb4+ {[%clk 0:00:08]} 48. Kd1 {[%clk 0:00:08]}  Qxc5 {[%clk 0:00:07]} 0-1


[Site "https://www.chess.com"]

[Event "Titled Tuesday Blitz November 29 Early 2022"]
[White "Migot, Tangi"]
[Black "Malek, Jan"]
[WhiteFideId "662445"]
[BlackFideId "21864080"]
[WhiteElo "2597"]
[BlackElo "2255"]
[Result "0-1"]
[Round "06"]
[TimeControl "180+1"]
[Date "2022.11.30"]
[WhiteClock "0:00:20"]
[BlackClock "0:00:13"]

1. e4 {[%clk 0:03:00]}  e6 {[%clk 0:02:58]} 2. d4 {[%clk 0:02:59]}  d5 {[%clk 0:02:59]} 3. Nc3 {[%clk 0:03:00]}  Be7 {[%clk 0:02:58]} 4. Qg4 {[%clk 0:02:56]}  Nf6 {[%clk 0:02:56]} 5. Qxg7 {[%clk 0:02:51]}  Rg8 {[%clk 0:02:56]} 6. Qh6 {[%clk 0:02:51]}  dxe4 {[%clk 0:02:56]} 7. Nge2 {[%clk 0:02:42]}  Nc6 {[%clk 0:02:55]} 8. Be3 {[%clk 0:02:41]}  e5 {[%clk 0:02:55]} 9. O-O-O {[%clk 0:02:39]}  Rg6 {[%clk 0:02:44]} 10. Qh4 {[%clk 0:02:37]}  Rg4 {[%clk 0:02:32]} 11. Qh6 {[%clk 0:02:35]}  Bf8 {[%clk 0:02:24]} 12. Qh3 {[%clk 0:02:27]}  Qe7 {[%clk 0:02:00]} 13. g3 {[%clk 0:02:09]}  Bd7 {[%clk 0:01:37]} 14. Qg2 {[%clk 0:02:04]}  O-O-O {[%clk 0:01:36]} 15. d5 {[%clk 0:01:51]}  Nb4 {[%clk 0:01:30]} 16. h3 {[%clk 0:01:46]}  Rg6 {[%clk 0:01:28]} 17. a3 {[%clk 0:01:47]}  Na6 {[%clk 0:01:13]} 18. Nxe4 {[%clk 0:01:48]}  Bf5 {[%clk 0:01:00]} 19. N2c3 {[%clk 0:01:43]}  Bxe4 {[%clk 0:00:54]} 20. Nxe4 {[%clk 0:01:42]}  Nxd5 {[%clk 0:00:55]} 21. Bxa6 {[%clk 0:01:13]}  bxa6 {[%clk 0:00:53]} 22. Bc5 {[%clk 0:00:56]}  Qe8 {[%clk 0:00:38]} 23. c4 {[%clk 0:00:39]}  Nb6 {[%clk 0:00:13]} 24. Rxd8+ {[%clk 0:00:33]}  Kxd8 {[%clk 0:00:07]} 25. Rd1+ {[%clk 0:00:26]}  Kc8 {[%clk 0:00:07]} 26. Qf3 {[%clk 0:00:19]}  Bxc5 {[%clk 0:00:04]} 27. Nxc5 {[%clk 0:00:19]}  Qc6 {[%clk 0:00:05]} 28. Qf5+ {[%clk 0:00:17]}  Re6 {[%clk 0:00:04]} 29. Nxe6 {[%clk 0:00:16]}  Qxc4+ {[%clk 0:00:04]} 30. Kb1 {[%clk 0:00:17]}  Qxe6 {[%clk 0:00:05]} 31. Qxe6+ {[%clk 0:00:17]}  fxe6 {[%clk 0:00:06]} 32. Re1 {[%clk 0:00:17]}  Nc4 {[%clk 0:00:06]} 33. Re4 {[%clk 0:00:17]}  Nd2+ {[%clk 0:00:06]} 34. Kc2 {[%clk 0:00:18]}  Nxe4 {[%clk 0:00:07]} 35. Kd3 {[%clk 0:00:19]}  Nxf2+ {[%clk 0:00:08]} 36. Ke2 {[%clk 0:00:18]}  Nxh3 {[%clk 0:00:08]} 37. Kf3 {[%clk 0:00:18]}  Ng5+ {[%clk 0:00:09]} 38. Kg4 {[%clk 0:00:19]}  Nf7 {[%clk 0:00:10]} 39. Kh5 {[%clk 0:00:19]}  Kd7 {[%clk 0:00:11]} 40. Kg4 {[%clk 0:00:19]}  Kd6 {[%clk 0:00:12]} 41. Kf3 {[%clk 0:00:20]}  Kd5 {[%clk 0:00:12]} 42. Ke3 {[%clk 0:00:20]}  e4 {[%clk 0:00:13]} 0-1


[Site "https://www.chess.com"]